bitfinex-derivatives/quotes_BTCF0:USTF0_20240902
["timestamp","ask_amount","ask_price","bid_price","bid_amount"]
[1725256510089,0.19816442,57896.0,57895.0,0.0004]
[1725256511099,0.17982248,57899.0,57895.0,0.0004]
[1725256511284,0.06070998,57901.0,57898.0,0.0004]
[1725256511488,0.06070998,57901.0,57900.0,0.0004]
[1725256511694,0.06070998,57901.0,57898.0,0.0004]
[1725256511695,0.17982248,57899.0,57898.0,0.0004]
[1725256511988,0.0004,57899.0,57898.0,0.0004]
[1725256512193,0.18639557,57899.0,57898.0,0.0004]
[1725256516592,0.00025898,57901.0,57899.0,0.060453]
[1725256516792,0.00025898,57901.0,57900.0,0.70602]
[1725256516995,0.00025898,57901.0,57900.0,1.30602]
[1725256519199,0.00025898,57901.0,57900.0,1.366472]
[1725256519399,0.060433,57918.0,57908.0,0.060443]
[1725256519592,0.060433,57918.0,57917.0,0.0004]
[1725256519796,0.24366681,57918.0,57917.0,0.0004]
[1725256520000,0.060433,57918.0,57917.0,0.0004]
[1725256520391,0.24800449,57918.0,57917.0,0.0004]
[1725256523199,0.30843749,57918.0,57917.0,0.0004]
[1725256525502,0.060438,57913.0,57912.0,0.00025898]
[1725256525701,0.421238,57913.0,57912.0,0.00025898]
[1725256526004,0.61864905,57913.0,57912.0,0.00025898]
[1725256526308,0.55821105,57913.0,57912.0,0.00025898]
[1725256526503,0.3612,57913.0,57912.0,0.00025898]
[1725256528601,0.54657024,57913.0,57912.0,0.00025898]
[1725256529799,0.60700824,57913.0,57912.0,0.00025898]
[1725256536203,0.60700824,57913.0,57900.0,0.3608]
[1725256536204,0.060439,57912.0,57900.0,0.3608]
[1725256536496,0.0004,57901.0,57900.0,0.3608]
[1725256536701,0.0481,57901.0,57900.0,0.3608]
[1725256538301,0.060456,57896.0,57895.0,0.00025898]
[1725256538509,0.421656,57896.0,57895.0,0.00025898]
[1725256538714,0.6185296,57896.0,57895.0,0.00025898]
[1725256541107,0.70462404,57896.0,57895.0,0.00025898]
[1725256541505,0.6185296,57896.0,57895.0,0.00025898]
[1725256541707,0.70462404,57896.0,57895.0,0.00025898]
[1725256541906,0.060464,57889.0,57883.0,0.0474]
[1725256542114,0.0004,57884.0,57880.0,0.36244]
[1725256542304,0.0004,57881.0,57880.0,0.428649]
[1725256542507,0.060868,57884.0,57880.0,0.428649]
[1725256542703,0.060868,57884.0,57883.0,0.05151773]
[1725256543514,0.0004,57884.0,57883.0,0.0004]
[1725256543818,0.0004,57884.0,57883.0,0.05151773]
[1725256545614,0.0004,57884.0,57883.0,0.0004]
[1725256546420,0.0004,57884.0,57883.0,0.060869]
[1725256549122,0.0004,57884.0,57883.0,0.11190469]
[1725256550425,0.0004,57884.0,57883.0,0.060869]
[1725256555226,0.0004,57884.0,57883.0,0.0004]
[1725256558326,0.19349295,57884.0,57883.0,0.0004]
[1725256560416,0.0004,57884.0,57883.0,0.0004]
[1725256561628,0.0004,57884.0,57883.0,0.060869]
[1725256561828,0.0004,57884.0,57883.0,0.11195329]
[1725256562126,0.0004,57884.0,57883.0,0.05148429]
[1725256562127,0.25059841,57884.0,57883.0,0.05148429]
[1725256562440,0.19013041,57884.0,57883.0,0.05148429]
[1725256563025,0.19013041,57884.0,57883.0,0.0004]
[1725256563733,0.19013041,57884.0,57883.0,0.05148429]
[1725256564120,0.0004,57884.0,57883.0,0.060869]
[1725256565025,0.0004,57884.0,57883.0,0.12905682]
[1725256565615,0.0004,57884.0,57883.0,0.060869]
[1725256568419,0.0004,57884.0,57883.0,0.14615443]
[1725256568932,0.0004,57884.0,57883.0,0.27779929]
[1725256569138,0.0004,57884.0,57883.0,0.14615443]
[1725256569625,0.186354,57884.0,57883.0,0.14615443]
[1725256569831,0.186354,57884.0,57883.0,0.0004]
[1725256570924,0.246822,57884.0,57883.0,0.0004]
[1725256571724,0.246822,57884.0,57883.0,0.06874664]
[1725256572125,0.246822,57884.0,57883.0,0.0004]
[1725256573426,0.386822,57884.0,57883.0,0.0004]
[1725256574328,0.246822,57884.0,57883.0,0.05166307]
[1725256575127,0.386822,57884.0,57883.0,0.0004]
[1725256577236,1.505102,57884.0,57883.0,0.0004]
[1725256578531,0.060474,57879.0,57878.0,0.00025898]
[1725256578732,0.64758781,57879.0,57878.0,0.00025898]
[1725256578940,0.84799053,57879.0,57878.0,0.00025898]
[1725256579233,0.76167389,57879.0,57878.0,0.00025898]
[1725256579438,0.84795625,57879.0,57878.0,0.00025898]
[1725256579628,1.87999389,57879.0,57878.0,0.00025898]
[1725256579944,1.94046789,57879.0,57878.0,0.00025898]
[1725256580136,1.81951989,57879.0,57867.0,0.05126307]
[1725256580333,0.060486,57867.0,57865.0,0.05126307]
[1725256580535,0.060486,57867.0,57865.0,0.06834664]
[1725256580536,0.0962,57866.0,57865.0,0.06834664]
[1725256580739,0.29425361,57866.0,57865.0,0.06834664]
[1725256580936,0.29425361,57866.0,57864.0,0.06834664]
[1725256581129,0.0004,57865.0,57864.0,0.06834664]
[1725256581333,0.0004,57865.0,57863.0,0.3608]
[1725256581334,0.0004,57865.0,57863.0,0.42914664]
[1725256581537,0.0004,57864.0,57863.0,0.42914664]
[1725256581940,0.19131158,57864.0,57863.0,0.42914664]
[1725256582449,0.19131158,57864.0,57863.0,0.3608]
[1725256582632,0.0004,57868.0,57863.0,1.61928]
[1725256582938,0.0004,57868.0,57867.0,0.0004]
[1725256583143,0.0004,57868.0,57867.0,0.106386]
[1725256583336,0.0004,57868.0,57867.0,1.364826]
[1725256584644,0.421274,57879.0,57867.0,1.364826]
[1725256584645,0.421274,57879.0,57870.0,0.060483]
[1725256584851,0.421274,57879.0,57870.0,0.060883]
[1725256587743,0.060468,57884.0,57870.0,1.179283]
[1725256587938,0.060468,57884.0,57870.0,1.39623063]
[1725256588141,0.060468,57884.0,57870.0,1.179283]
[1725256588352,0.060468,57884.0,57870.0,0.79614168]
[1725256589457,0.060468,57884.0,57870.0,0.71094565]
[1725256589658,0.060468,57884.0,57870.0,0.79614358]
[1725256590051,0.060469,57883.0,57870.0,0.79614358]
[1725256590443,0.060469,57883.0,57870.0,0.71094565]
[1725256592550,0.060471,57882.0,57870.0,0.66449057]
[1725256592846,0.0495,57881.0,57870.0,0.66449057]
[1725256593762,0.0495,57881.0,57870.0,0.79615221]
[1725256594368,0.0495,57881.0,57870.0,0.71094559]
[1725256594567,0.3608,57886.0,57881.0,0.06047]
[1725256594864,0.3608,57886.0,57884.0,0.0004]
[1725256595258,0.23083911,57885.0,57884.0,0.0004]
[1725256595962,0.23083911,57885.0,57884.0,0.060868]
[1725256599967,0.23083911,57885.0,57884.0,0.11201522]
[1725256600563,0.23083911,57885.0,57884.0,0.05154722]
[1725256600774,0.29130611,57885.0,57884.0,0.05154722]
[1725256600969,1.40958611,57885.0,57884.0,0.0004]
[1725256601360,0.060472,57880.0,57879.0,0.00025922]
[1725256601562,0.561672,57880.0,57879.0,0.00025922]
[1725256601765,0.75918977,57880.0,57879.0,0.00025922]
[1725256604876,0.060479,57874.0,57866.0,0.11163422]
[1725256605070,0.0004,57867.0,57864.0,0.05114722]
[1725256605375,0.1992921,57866.0,57863.0,0.05114722]
[1725256605580,0.0004,57864.0,57863.0,0.05114722]
[1725256605780,0.0004,57864.0,57862.0,0.41194722]
[1725256605980,0.0004,57863.0,57862.0,0.41587453]
[1725256606481,0.18131789,57863.0,57862.0,0.36472731]
[1725256606781,0.0004,57863.0,57862.0,0.36472731]
[1725256608372,0.0004,57863.0,57862.0,0.42521831]
[1725256609080,0.0004,57863.0,57862.0,0.3608]
[1725256610479,0.1974643,57863.0,57862.0,0.42900852]
[1725256610983,0.2579543,57863.0,57862.0,0.3608]
[1725256611181,0.060492,57861.0,57858.0,0.06820852]
[1725256611379,0.0004,57859.0,57857.0,0.06838289]
[1725256611681,0.1820561,57858.0,57857.0,0.00017437]
[1725256613381,0.1820561,57858.0,57857.0,0.05131224]
[1725256613575,0.6033511,57858.0,57857.0,0.05131224]
[1725256613775,0.2425511,57858.0,57857.0,0.05131224]
[1725256614086,0.6033511,57858.0,57857.0,0.00017437]
[1725256614582,0.2425511,57858.0,57857.0,0.00017437]
[1725256618287,0.6033511,57858.0,57857.0,0.00017437]
[1725256621080,1.7218711,57858.0,57857.0,0.00017437]
[1725256622283,0.6033511,57858.0,57857.0,0.00017437]
[1725256627384,0.2425511,57858.0,57857.0,0.00017437]
[1725256633898,0.3825511,57858.0,57857.0,0.00017437]
[1725256636089,0.7433511,57858.0,57857.0,0.00017437]
[1725256638100,0.3825511,57858.0,57857.0,0.00017437]
[1725256639499,0.9010711,57858.0,57857.0,0.05131224]
[1725256639800,0.9010711,57858.0,57857.0,0.00017437]
[1725256640497,0.3825511,57858.0,57857.0,0.00017437]
[1725256643894,0.2425511,57858.0,57857.0,0.00017437]
[1725256644096,0.3225511,57858.0,57857.0,0.00017437]
[1725256645399,0.425731,57858.0,57857.0,0.00017437]
[1725256646402,0.3225511,57858.0,57857.0,0.00017437]
[1725256648393,0.3225511,57858.0,57857.0,0.05152561]
[1725256648602,0.3225511,57858.0,57857.0,0.00017437]
[1725256649499,0.3830461,57858.0,57857.0,0.00017437]
[1725256651302,0.3225511,57858.0,57857.0,0.00017437]
[1725256653192,0.3225511,57858.0,57857.0,0.05152449]
[1725256653398,0.3225511,57858.0,57857.0,0.00017437]
[1725256654203,0.3225511,57858.0,57857.0,0.05152281]
[1725256654907,0.35594185,57858.0,57857.0,0.00017437]
[1725256655211,0.87446185,57858.0,57857.0,0.00017437]
[1725256655508,0.08,57848.0,57847.0,0.3608]
[1725256655699,0.0804,57848.0,57847.0,0.3608]
[1725256655900,0.27443104,57848.0,57847.0,0.3608]
[1725256658002,0.19443104,57848.0,57847.0,0.3608]
[1725256667524,0.25493704,57848.0,57847.0,0.3608]
[1725256669116,0.25493704,57848.0,57847.0,0.42920708]
[1725256669515,0.25493704,57848.0,57847.0,0.42916708]
[1725256670910,0.33493704,57848.0,57847.0,0.42916708]
[1725256671115,0.33493704,57848.0,57847.0,0.36076]
[1725256671310,0.33493704,57848.0,57847.0,0.42916708]
[1725256672007,0.33493704,57848.0,57847.0,0.06840708]
[1725256672211,0.060507,57847.0,57846.0,0.06840708]
[1725256672412,0.060907,57847.0,57846.0,0.06840708]
[1725256672618,0.24961316,57847.0,57846.0,0.06840708]
[1725256675123,0.61041316,57847.0,57846.0,0.06840708]
[1725256675424,0.060508,57846.0,57845.0,0.06840708]
[1725256675726,0.060509,57845.0,57844.0,0.06840708]
[1725256675909,0.060909,57845.0,57844.0,0.06840708]
[1725256676115,0.25147102,57845.0,57844.0,0.06840708]
[1725256677522,0.25147102,57845.0,57843.0,0.06840708]
[1725256677719,0.0004,57844.0,57843.0,0.06840708]
[1725256677924,0.0004,57844.0,57841.0,0.10436957]
[1725256678227,0.0004,57842.0,57841.0,0.10436957]
[1725256678620,0.19553237,57842.0,57841.0,0.10436957]
[1725256679625,0.19553237,57842.0,57841.0,0.05307453]
[1725256680014,0.19553237,57842.0,57841.0,0.19358753]
[1725256680215,0.19653237,57842.0,57841.0,0.61768257]
[1725256680416,0.19753237,57842.0,57841.0,0.21758753]
[1725256681115,0.19553237,57842.0,57841.0,0.19758753]
[1725256684626,0.19553237,57842.0,57841.0,0.11758753]
[1725256684826,0.19553237,57842.0,57841.0,0.11968402]
[1725256685033,0.19553237,57842.0,57841.0,0.06838753]
[1725256686320,0.19553237,57842.0,57841.0,0.00787453]
[1725256686728,0.25604437,57842.0,57841.0,0.00787453]
[1725256687524,0.25604437,57842.0,57841.0,0.00487453]
[1725256688726,0.25704437,57842.0,57841.0,0.00387453]
[1725256688921,0.25704437,57842.0,57840.0,0.08]
[1725256689117,0.0004,57841.0,57840.0,0.08]
[1725256689425,0.19827803,57841.0,57840.0,0.08]
[1725256690333,0.19827803,57841.0,57840.0,0.082]
[1725256690529,0.19827803,57841.0,57840.0,0.08595148]
[1725256690933,0.19827803,57841.0,57840.0,0.14646548]
[1725256693631,0.19827803,57841.0,57840.0,0.06646548]
[1725256698834,0.19827803,57841.0,57840.0,0.14646548]
[1725256700235,0.19827803,57841.0,57840.0,0.27820999]
[1725256703238,0.19827803,57841.0,57840.0,0.19820999]
[1725256703542,0.19827803,57841.0,57840.0,0.19821113]
[1725256710533,0.0004,57841.0,57840.0,0.63901113]
[1725256710734,0.0004,57846.0,57843.0,0.060511]
[1725256711035,0.0004,57846.0,57845.0,0.0804]
[1725256711443,0.18395805,57846.0,57845.0,0.140909]
[1725256711943,0.18355805,57846.0,57845.0,0.140909]
[1725256712334,0.004,57846.0,57845.0,0.22649207]
[1725256712536,0.004,57846.0,57845.0,0.63344333]
[1725256712937,0.005,57846.0,57845.0,0.63344333]
[1725256713448,0.007,57846.0,57845.0,0.63344333]
[1725256713639,0.006,57846.0,57845.0,0.63344333]
[1725256713840,0.009,57846.0,57845.0,0.63344333]
[1725256714041,0.009,57846.0,57845.0,1.75208333]
[1725256714236,0.00025922,57853.0,57852.0,0.060502]
[1725256714437,0.060485,57868.0,57863.0,0.06049]
[1725256714649,0.060485,57868.0,57867.0,0.0004]
[1725256714941,0.2482551,57868.0,57867.0,0.0004]
[1725256715349,0.1877701,57868.0,57867.0,0.0004]
[1725256715541,0.1947701,57868.0,57867.0,0.0004]
[1725256715746,0.007,57868.0,57867.0,0.0004]
[1725256715945,0.2037797,57868.0,57867.0,0.0004]
[1725256716246,0.2037797,57868.0,57867.0,0.0014]
[1725256716449,0.2067797,57868.0,57867.0,0.0014]
[1725256717248,0.2067797,57868.0,57867.0,0.0024]
[1725256717644,0.2067797,57868.0,57867.0,0.00641083]
[1725256717840,0.2067797,57868.0,57867.0,0.0024]
[1725256718551,0.2067797,57868.0,57867.0,0.062886]
[1725256718940,0.2067797,57868.0,57867.0,0.0024]
[1725256719146,0.2067797,57868.0,57867.0,0.00640926]
[1725256719356,0.2067797,57868.0,57867.0,0.0024]
[1725256720944,0.3000797,57868.0,57867.0,0.0024]
[1725256721854,0.8985197,57868.0,57867.0,0.0024]
[1725256723354,0.9590047,57868.0,57867.0,0.0024]
[1725256726054,0.8790047,57868.0,57867.0,0.0024]
[1725256726250,0.3605647,57868.0,57867.0,0.0024]
[1725256726656,0.3123647,57868.0,57867.0,0.0024]
[1725256727150,0.3923647,57868.0,57867.0,0.0024]
[1725256727551,0.9108047,57868.0,57867.0,0.0024]
[1725256727851,1.6812897,57868.0,57867.0,0.0024]
[1725256729161,0.06049,57863.0,57862.0,0.00025922]
[1725256729455,0.06049,57863.0,57852.0,0.0004]
[1725256729456,0.060501,57853.0,57852.0,0.0004]
[1725256729648,0.140901,57853.0,57852.0,0.0004]
[1725256729848,0.33217316,57853.0,57852.0,0.0004]
[1725256730343,0.060503,57851.0,57849.0,0.00395195]
[1725256730547,0.060505,57850.0,57846.0,0.3608]
[1725256730744,0.0004,57847.0,57846.0,0.3608]
[1725256731043,0.19323218,57847.0,57846.0,0.3608]
[1725256732143,0.18923218,57847.0,57846.0,0.3608]
[1725256732551,0.18923218,57847.0,57844.0,0.4408]
[1725256732953,0.19023218,57847.0,57844.0,0.4408]
[1725256733351,0.19023218,57847.0,57846.0,0.001]
[1725256735062,0.24673918,57847.0,57846.0,0.001]
[1725256735264,0.24873918,57847.0,57846.0,0.001]
[1725256735561,0.060508,57846.0,57844.0,0.44232]
[1725256735761,0.060508,57846.0,57844.0,0.4408]
[1725256735957,0.20022587,57845.0,57844.0,0.4408]
[1725256736155,0.19922587,57845.0,57844.0,0.4408]
[1725256737263,0.19962587,57845.0,57844.0,0.4408]
[1725256737464,0.20462587,57845.0,57844.0,0.4408]
[1725256737666,0.20462587,57845.0,57844.0,0.3608]
[1725256737667,0.26513487,57845.0,57844.0,0.3608]
[1725256737962,0.060511,57843.0,57842.0,0.00387742]
[1725256738165,0.060511,57843.0,57840.0,0.08]
[1725256738166,0.060911,57843.0,57840.0,0.14827561]
[1725256738361,0.0004,57842.0,57840.0,0.08]
[1725256738665,0.25668973,57842.0,57840.0,0.08]
[1725256739452,0.25668973,57842.0,57841.0,0.0477]
[1725256739657,0.25668973,57842.0,57841.0,0.05162954]
[1725256739868,0.25868973,57842.0,57841.0,0.05162954]
[1725256740064,0.25868973,57842.0,57841.0,0.05062954]
[1725256740270,0.25868973,57842.0,57841.0,0.05162954]
[1725256740857,0.25868973,57842.0,57841.0,0.41242954]
[1725256741059,0.25868973,57842.0,57841.0,0.05162954]
[1725256744666,0.25868973,57842.0,57841.0,0.00492954]
[1725256744861,0.25868973,57842.0,57841.0,0.05605842]
[1725256745260,0.25868973,57842.0,57841.0,0.00492954]
[1725256746361,0.25868973,57842.0,57820.0,0.08534451]
[1725256746362,0.51868,57841.0,57820.0,0.08534451]
[1725256746563,0.51868,57841.0,57821.0,0.06821294]
[1725256746564,0.140533,57822.0,57821.0,0.06821294]
[1725256746768,0.140533,57822.0,57819.0,0.0511804]
[1725256746769,0.08,57822.0,57819.0,0.0511804]
[1725256747066,0.08,57822.0,57818.0,0.0511804]
[1725256747067,0.0004,57820.0,57818.0,0.0511804]
[1725256747268,0.0004,57819.0,57818.0,0.060537]
[1725256747465,0.19876131,57819.0,57818.0,0.660537]
[1725256747659,0.00025922,57827.0,57826.0,0.060529]
[1725256747968,0.00025922,57827.0,57826.0,1.080129]
[1725256748170,0.00025922,57827.0,57826.0,1.680129]
[1725256749268,0.00025922,57827.0,57826.0,1.13222899]
[1725256749679,0.00025922,57827.0,57826.0,1.73222899]
[1725256749867,0.00025922,57827.0,57826.0,1.681129]
[1725256750372,0.421311,57843.0,57835.0,0.06052]
[1725256750561,0.060512,57842.0,57835.0,0.06052]
[1725256750768,0.18546306,57838.0,57835.0,0.06052]
[1725256750973,0.060515,57840.0,57832.0,0.0484]
[1725256751167,0.060516,57838.0,57832.0,0.0484]
[1725256751371,0.18563455,57837.0,57832.0,0.0484]
[1725256751578,0.060516,57838.0,57835.0,0.001]
[1725256751876,0.18754223,57837.0,57835.0,0.001]
[1725256752579,0.18754223,57837.0,57832.0,0.0484]
[1725256752876,0.18754223,57837.0,57835.0,0.001]
[1725256753274,0.18754223,57837.0,57833.0,0.0511025]
[1725256753475,0.19654223,57837.0,57835.0,0.001]
[1725256754374,0.18754223,57837.0,57833.0,0.0511025]
[1725256754687,0.0004,57834.0,57833.0,0.0521025]
[1725256754974,0.18239092,57834.0,57833.0,0.0521025]
[1725256755392,0.18239092,57834.0,57833.0,0.001]
[1725256755571,0.18139092,57834.0,57832.0,0.11131635]
[1725256755778,0.0004,57833.0,57832.0,0.06441635]
[1725256756283,0.19996512,57833.0,57832.0,0.06441635]
[1725256756575,0.19796512,57833.0,57832.0,0.06441635]
[1725256757371,0.20696512,57833.0,57832.0,0.06541635]
[1725256758173,0.21296512,57833.0,57832.0,0.06541635]
[1725256758577,0.21296512,57833.0,57832.0,0.13356618]
[1725256758772,0.21296512,57833.0,57832.0,0.00489335]
[1725256759076,0.21296512,57833.0,57832.0,0.07304318]
[1725256759277,0.21296512,57833.0,57832.0,0.43384318]
[1725256759667,0.21296512,57833.0,57832.0,0.00489335]
[1725256759868,0.21296512,57833.0,57832.0,0.43384318]
[1725256760468,0.21296512,57833.0,57832.0,0.36569335]
[1725256760878,0.21296512,57833.0,57832.0,0.42621635]
[1725256761271,0.21296512,57833.0,57832.0,0.06541635]
[1725256761476,0.21296512,57833.0,57832.0,0.13372256]
[1725256761665,0.21296512,57833.0,57832.0,0.07319956]
[1725256762071,0.27348712,57833.0,57832.0,0.06930621]
[1725256762272,0.27348712,57833.0,57832.0,0.001]
[1725256763478,0.63428712,57833.0,57832.0,0.001]
[1725256764873,0.75428712,57833.0,57832.0,0.05225363]
[1725256765079,0.75428712,57833.0,57832.0,0.001]
[1725256767590,0.81480912,57833.0,57832.0,0.001]
[1725256768786,0.75428712,57833.0,57832.0,0.001]
[1725256770503,0.81480912,57833.0,57832.0,0.001]
[1725256772507,1.93352912,57833.0,57832.0,0.001]
[1725256775011,1.87300712,57833.0,57832.0,0.001]
[1725256775312,0.75428712,57833.0,57832.0,0.001]
[1725256777315,0.39348712,57833.0,57832.0,0.001]
[1725256781810,0.39348712,57833.0,57832.0,0.05230646]
[1725256782514,0.39348712,57833.0,57832.0,0.001]
[1725256787512,0.49707005,57833.0,57832.0,0.001]
[1725256788224,0.39348712,57833.0,57832.0,0.001]
[1725256789913,0.53400912,57833.0,57832.0,0.001]
[1725256791823,1.65272912,57833.0,57832.0,0.001]
[1725256792028,0.12105,57830.0,57829.0,0.00025922]
[1725256792330,0.060533,57822.0,57821.0,0.05130646]
[1725256792621,0.060534,57821.0,57820.0,0.05130646]
[1725256792825,0.140934,57821.0,57820.0,0.05130646]
[1725256793024,0.33913461,57821.0,57820.0,0.05130646]
[1725256793225,0.27860061,57821.0,57820.0,0.05138871]
[1725256793421,0.27760061,57821.0,57820.0,0.05138871]
[1725256794125,0.19860061,57821.0,57820.0,0.05138871]
[1725256794825,0.26013461,57821.0,57820.0,0.001]
[1725256795427,0.26013461,57821.0,57820.0,0.005]
[1725256796029,0.19960061,57821.0,57820.0,0.005]
[1725256796225,0.19860061,57821.0,57820.0,0.004]
[1725256796923,0.19860061,57821.0,57820.0,0.07247561]
[1725256797123,0.19860061,57821.0,57820.0,0.004]
[1725256797533,0.39913461,57821.0,57820.0,0.004]
[1725256799438,0.25913461,57821.0,57820.0,0.004]
[1725256800837,0.39913461,57821.0,57820.0,0.004]
[1725256801036,0.25913461,57821.0,57820.0,0.004]
[1725256801230,0.19860061,57821.0,57820.0,0.004]
[1725256801630,0.19860061,57821.0,57820.0,0.0015]
[1725256801830,0.19860061,57821.0,57820.0,0.062035]
[1725256804533,0.0004,57821.0,57820.0,0.63223365]
[1725256804939,0.3591,57822.0,57821.0,0.060534]
[1725256806441,0.3601,57822.0,57821.0,0.060534]
[1725256806642,0.3601,57822.0,57821.0,0.062534]
[1725256807629,0.55439347,57822.0,57821.0,0.002]
[1725256807837,0.61492647,57822.0,57821.0,0.002]
[1725256808035,0.66312647,57822.0,57821.0,0.002]
[1725256808437,0.66312647,57822.0,57821.0,0.05335896]
[1725256808631,0.66312647,57822.0,57821.0,0.002]
[1725256808938,0.66312647,57822.0,57821.0,0.07046871]
[1725256812044,0.61492647,57822.0,57821.0,0.002]
[1725256812536,0.61492647,57822.0,57821.0,0.07048592]
[1725256812743,0.61492647,57822.0,57821.0,0.002]
[1725256816040,0.61492647,57822.0,57821.0,0.05337085]
[1725256816245,0.61492647,57822.0,57821.0,0.002]
[1725256816543,0.61492647,57822.0,57821.0,0.05337085]
[1725256816740,0.55439347,57822.0,57821.0,0.11390485]
[1725256816934,0.55439347,57822.0,57821.0,0.062534]
[1725256817536,0.55439347,57822.0,57821.0,0.06657374]
[1725256819042,0.55439347,57822.0,57821.0,0.002]
[1725256819341,0.55439347,57822.0,57821.0,0.05339305]
[1725256819733,0.55439347,57822.0,57821.0,0.062534]
[1725256820349,0.55439347,57822.0,57821.0,0.14804477]
[1725256820741,0.55439347,57822.0,57821.0,0.062534]
[1725256821142,0.55439347,57822.0,57821.0,0.14804477]
[1725256821446,0.55439347,57822.0,57821.0,0.062534]
[1725256824046,0.19529347,57822.0,57821.0,0.27983551]
[1725256825237,0.19529347,57822.0,57821.0,0.14804477]
[1725256826953,0.19529347,57822.0,57821.0,0.27983499]
[1725256827446,0.19529347,57822.0,57821.0,0.14804477]
[1725256827749,0.19529347,57822.0,57821.0,0.062534]
[1725256828552,0.19529347,57822.0,57821.0,0.19432238]
[1725256830555,0.19529347,57822.0,57821.0,0.14814889]
[1725256831152,0.19529347,57822.0,57821.0,0.19432331]
[1725256832053,0.001,57822.0,57821.0,0.19432331]
[1725256832750,0.001,57822.0,57821.0,0.55512331]
[1725256832947,0.001,57822.0,57821.0,0.71316331]
[1725256833147,0.001,57822.0,57821.0,1.07396331]
[1725256833450,0.001,57822.0,57821.0,1.67396331]
[1725256835359,0.001,57822.0,57821.0,1.542174]
[1725256836161,0.001,57822.0,57821.0,1.622174]
[1725256836947,0.001,57822.0,57821.0,1.261374]
[1725256837157,0.001,57822.0,57821.0,1.622174]
[1725256841652,0.001,57822.0,57821.0,1.69063069]
[1725256841858,0.001,57822.0,57821.0,1.622174]
[1725256842262,0.001,57822.0,57821.0,1.09062379]
[1725256843258,0.001,57822.0,57821.0,1.09064002]
[1725256843458,0.001,57822.0,57821.0,1.15395279]
[1725256845954,0.001,57822.0,57821.0,1.15395201]
[1725256850157,1.13662993,57822.0,57821.0,0.002]
[1725256850474,0.060537,57818.0,57815.0,0.08562109]
[1725256850662,0.0804,57816.0,57813.0,0.08562109]
[1725256850857,0.0804,57814.0,57810.0,0.36477992]
[1725256851070,0.08,57814.0,57811.0,0.13180965]
[1725256851265,0.19423083,57813.0,57812.0,0.13180965]
[1725256851975,0.18623083,57813.0,57812.0,0.13180965]
[1725256852367,0.19431604,57815.0,57812.0,0.13180965]
[1725256852563,0.060939,57816.0,57814.0,0.0004]
[1725256852767,0.060939,57816.0,57815.0,0.0004]
[1725256853069,0.19431604,57815.0,57814.0,0.0004]
[1725256853272,0.0004,57815.0,57814.0,0.13220406]
[1725256853768,0.0004,57815.0,57814.0,0.13920406]
[1725256854768,0.0004,57815.0,57814.0,0.14320406]
[1725256855170,0.0004,57815.0,57814.0,0.14319683]
[1725256855672,0.0004,57815.0,57814.0,0.13719683]
[1725256855673,0.0024,57815.0,57814.0,0.13719683]
[1725256857065,0.0024,57815.0,57814.0,0.19773783]
[1725256859975,0.0024,57815.0,57814.0,0.91933151]
[1725256860565,0.3608,57837.0,57825.0,0.06053]
[1725256860767,2.2e-07,57826.0,57825.0,0.3327092]
[1725256860971,2.2e-07,57826.0,57825.0,1.4515092]
[1725256861278,2.2e-07,57826.0,57825.0,1.55413532]
[1725256862179,2.2e-07,57826.0,57825.0,1.4515092]
[1725256862375,0.00400022,57826.0,57825.0,1.4515092]
[1725256862569,0.00400022,57826.0,57825.0,1.55413532]
[1725256862764,0.01000022,57826.0,57825.0,1.55413532]
[1725256863176,0.01000022,57826.0,57825.0,1.4515092]
[1725256864175,0.01000022,57826.0,57825.0,1.4970092]
[1725256864368,0.01000022,57826.0,57825.0,1.59963532]
[1725256864570,0.1424,57836.0,57835.0,0.06052]
[1725256864571,0.0482,57836.0,57835.0,0.06052]
[1725256864771,0.0482,57836.0,57835.0,0.56172]
[1725256864974,0.0482,57836.0,57835.0,0.64712302]
[1725256865285,0.0482,57836.0,57835.0,0.56172]
[1725256865480,0.23603409,57836.0,57835.0,0.06870134]
[1725256865776,0.51872,57835.0,57831.0,0.05124349]
[1725256865981,0.1404,57832.0,57828.0,0.05124349]
[1725256866172,0.1404,57832.0,57827.0,0.05124349]
[1725256866173,0.0004,57829.0,57827.0,0.05124349]
[1725256866479,0.18757468,57828.0,57827.0,0.05124349]
[1725256867572,0.18657468,57828.0,57827.0,0.05124349]
[1725256868078,0.18657468,57828.0,57826.0,0.05124349]
[1725256868481,0.19157468,57828.0,57826.0,0.05124349]
[1725256868981,0.0463,57827.0,57826.0,0.05124349]
[1725256869383,0.2318888,57827.0,57825.0,0.06831217]
[1725256869575,0.00303721,57827.0,57826.0,0.06931217]
[1725256870076,0.00303721,57827.0,57826.0,0.42911217]
[1725256870281,0.006,57827.0,57826.0,0.3618]
[1725256870579,0.006,57827.0,57826.0,0.001]
[1725256870882,0.006,57827.0,57826.0,0.201529]
[1725256871067,0.011,57827.0,57826.0,0.201529]
[1725256871980,0.011,57827.0,57826.0,0.2054521]
[1725256872881,0.011,57827.0,57826.0,0.5662521]
[1725256873376,0.011,57827.0,57826.0,0.69801951]
[1725256873678,0.0114,57827.0,57826.0,0.5662521]
[1725256874681,0.0114,57827.0,57826.0,1.6850521]
[1725256874986,0.0483,57840.0,57827.0,0.00862889]
[1725256875189,0.0483,57840.0,57839.0,0.0004]
[1725256876477,0.0623,57840.0,57839.0,0.0014]
[1725256876879,0.0623,57840.0,57839.0,0.061915]
[1725256877780,0.0673,57840.0,57839.0,0.061915]
[1725256877975,0.26757994,57840.0,57839.0,0.0659263]
[1725256878177,0.26757994,57840.0,57839.0,0.060915]
[1725256878383,0.25757994,57840.0,57839.0,0.0004]
[1725256878784,0.25257994,57840.0,57839.0,0.0004]
[1725256878980,0.25557994,57840.0,57839.0,0.0004]
[1725256881293,0.25557994,57840.0,57839.0,0.05162698]
[1725256881484,0.0553,57840.0,57839.0,0.05162698]
[1725256882085,0.0553,57840.0,57839.0,0.05159567]
[1725256882290,0.0553,57840.0,57839.0,0.0004]
[1725256882482,0.600223,57840.0,57839.0,0.05160393]
[1725256882682,1.718903,57840.0,57835.0,0.05120393]
[1725256882887,0.06052,57835.0,57834.0,0.00025945]
[1725256883093,0.19092,57835.0,57834.0,0.00025945]
[1725256883288,1.49102869,57835.0,57834.0,0.00025945]
[1725256883495,0.060525,57830.0,57828.0,0.05120393]